[Event "Titled Tuesday Blitz June 6 Early 2023"]
[White "Khumalo, Keith"]
[Black "LeoLV10"]
[WhiteFideId "14319470"]
[WhiteElo "2056"]
[BlackElo "2415"]
[Result "1-0"]
[Round "3"]
[TimeControl "180+2"]
[Date "2023.06.06"]
[WhiteClock "0:01:29"]
[BlackClock "0:00:39"]
[Board "55"]

1. d4 {[%clk 0:03:00]}  Nf6 {[%clk 0:02:56]} 2. Nc3 {[%clk 0:03:01]}  d5 {[%clk 0:02:55]} 3. Bf4 {[%clk 0:03:01]}  c6 {[%clk 0:02:55]} 4. Nf3 {[%clk 0:03:01]}  g6 {[%clk 0:02:56]} 5. e3 {[%clk 0:03:02]}  Bg7 {[%clk 0:02:57]} 6. Ne5 {[%clk 0:03:02]}  O-O {[%clk 0:02:57]} 7. h4 {[%clk 0:03:03]}  h5 {[%clk 0:02:57]} 8. Be2 {[%clk 0:03:02]}  Nbd7 {[%clk 0:02:53]} 9. Qd2 {[%clk 0:02:40]}  Nxe5 {[%clk 0:02:42]} 10. Bxe5 {[%clk 0:02:41]}  Bf5 {[%clk 0:02:33]} 11. f3 {[%clk 0:02:41]}  Qd7 {[%clk 0:02:28]} 12. O-O-O {[%clk 0:02:41]}  b5 {[%clk 0:02:26]} 13. Rhg1 {[%clk 0:02:32]}  b4 {[%clk 0:02:17]} 14. Na4 {[%clk 0:02:31]}  a5 {[%clk 0:02:17]} 15. Nc5 {[%clk 0:02:29]}  Qc8 {[%clk 0:02:17]} 16. Bxf6 {[%clk 0:02:22]}  exf6 {[%clk 0:02:17]} 17. g4 {[%clk 0:02:23]}  hxg4 {[%clk 0:02:18]} 18. fxg4 {[%clk 0:02:24]}  Be4 {[%clk 0:02:19]} 19. h5 {[%clk 0:02:21]}  g5 {[%clk 0:02:18]} 20. Bd3 {[%clk 0:02:19]}  Bxd3 {[%clk 0:02:09]} 21. Qxd3 {[%clk 0:02:20]}  Re8 {[%clk 0:02:06]} 22. Rdf1 {[%clk 0:02:14]}  Ra7 {[%clk 0:01:59]} 23. h6 {[%clk 0:02:08]}  Bh8 {[%clk 0:01:58]} 24. h7+ {[%clk 0:02:03]}  Kf8 {[%clk 0:01:58]} 25. e4 {[%clk 0:01:51]}  Rae7 {[%clk 0:01:52]} 26. Qh3 {[%clk 0:01:50]}  Rxe4 {[%clk 0:01:44]} 27. Qh6+ {[%clk 0:01:49]}  Ke7 {[%clk 0:01:44]} 28. Nxe4 {[%clk 0:01:47]}  dxe4 {[%clk 0:01:44]} 29. Re1 {[%clk 0:01:46]}  Kd6 {[%clk 0:01:42]} 30. Qh2+ {[%clk 0:01:44]}  Kd7 {[%clk 0:01:35]} 31. Qg2 {[%clk 0:01:42]}  Kc7 {[%clk 0:00:44]} 32. Rxe4 {[%clk 0:01:41]}  Rxe4 {[%clk 0:00:44]} 33. Qxe4 {[%clk 0:01:40]}  Qf8 {[%clk 0:00:42]} 34. d5 {[%clk 0:01:34]}  Qc5 {[%clk 0:00:38]} 35. Rd1 {[%clk 0:01:33]}  cxd5 {[%clk 0:00:38]} 36. Rxd5 {[%clk 0:01:33]}  Qg1+ {[%clk 0:00:38]} 37. Rd1 {[%clk 0:01:33]}  Qh2 {[%clk 0:00:38]} 38. Qe7+ {[%clk 0:01:31]}  Kb6 {[%clk 0:00:39]} 39. Rd6+ {[%clk 0:01:30]}  Kc5 {[%clk 0:00:39]} 40. Qc7+ {[%clk 0:01:30]}  Kb5 {[%clk 0:00:39]} 41. Qc6# {[%clk 0:01:29]} 1-0


[Site "https://www.chess.com"]

[Event "Titled Tuesday Blitz June 6 Early 2023"]
[White "Dubov, Daniil"]
[Black "MunichMouse"]
[WhiteFideId "24126055"]
[WhiteElo "2793"]
[BlackElo "2275"]
[Result "1-0"]
[Round "3"]
[TimeControl "180+2"]
[Date "2023.06.06"]
[WhiteClock "0:01:12"]
[BlackClock "0:00:57"]
[Board "58"]

1. g3 {[%clk 0:02:59]}  c5 {[%clk 0:02:57]} 2. Bg2 {[%clk 0:02:59]}  g6 {[%clk 0:02:58]} 3. c4 {[%clk 0:02:55]}  Bg7 {[%clk 0:02:58]} 4. Nc3 {[%clk 0:02:55]}  e5 {[%clk 0:02:59]} 5. e3 {[%clk 0:02:55]}  Ne7 {[%clk 0:03:00]} 6. Nge2 {[%clk 0:02:55]}  Nbc6 {[%clk 0:03:00]} 7. b3 {[%clk 0:02:47]}  O-O {[%clk 0:03:00]} 8. Bb2 {[%clk 0:02:47]}  d6 {[%clk 0:03:01]} 9. O-O {[%clk 0:02:47]}  Be6 {[%clk 0:03:01]} 10. Nd5 {[%clk 0:02:47]}  f5 {[%clk 0:02:59]} 11. d3 {[%clk 0:02:45]}  Qd7 {[%clk 0:02:57]} 12. a3 {[%clk 0:02:45]}  Rae8 {[%clk 0:02:57]} 13. b4 {[%clk 0:02:44]}  b6 {[%clk 0:02:57]} 14. Qd2 {[%clk 0:02:38]}  h6 {[%clk 0:02:55]} 15. f4 {[%clk 0:02:36]}  Kh7 {[%clk 0:02:53]} 16. Kh1 {[%clk 0:02:36]}  Bf7 {[%clk 0:02:46]} 17. Rf2 {[%clk 0:02:31]}  Nxd5 {[%clk 0:02:46]} 18. cxd5 {[%clk 0:02:31]}  Ne7 {[%clk 0:02:46]} 19. e4 {[%clk 0:02:32]}  Ng8 {[%clk 0:02:29]} 20. Raf1 {[%clk 0:02:22]}  fxe4 {[%clk 0:01:42]} 21. dxe4 {[%clk 0:02:22]}  c4 {[%clk 0:01:42]} 22. fxe5 {[%clk 0:02:13]}  Bxe5 {[%clk 0:01:39]} 23. Nd4 {[%clk 0:02:10]}  Kg7 {[%clk 0:01:37]} 24. Nc6 {[%clk 0:02:03]}  g5 {[%clk 0:01:22]} 25. Rf5 {[%clk 0:01:44]}  Bg6 {[%clk 0:01:11]} 26. Nxe5 {[%clk 0:01:30]}  dxe5 {[%clk 0:01:08]} 27. Rxf8 {[%clk 0:01:29]}  Rxf8 {[%clk 0:00:58]} 28. Bxe5+ {[%clk 0:01:29]}  Nf6 {[%clk 0:00:58]} 29. Qc3 {[%clk 0:01:21]}  Qe7 {[%clk 0:00:59]} 30. d6 {[%clk 0:01:20]}  Qe6 {[%clk 0:00:59]} 31. Bxf6+ {[%clk 0:01:12]}  Rxf6 {[%clk 0:00:57]} 32. d7 {[%clk 0:01:12]} 1-0


[Site "https://www.chess.com"]

[Event "Titled Tuesday Blitz June 6 Early 2023"]
[White "Ginzburg, Yakov"]
[Black "Zhigalko, Sergei"]
[WhiteFideId "4157176"]
[BlackFideId "13502956"]
[WhiteElo "2305"]
[BlackElo "2626"]
[Result "0-1"]
[Round "3"]
[TimeControl "180+2"]
[Date "2023.06.06"]
[WhiteClock "0:00:02"]
[BlackClock "0:00:07"]
[Board "61"]

1. d4 {[%clk 0:02:59]}  Nf6 {[%clk 0:03:00]} 2. Nf3 {[%clk 0:02:59]}  e6 {[%clk 0:03:01]} 3. g3 {[%clk 0:02:59]}  b5 {[%clk 0:03:01]} 4. Bg2 {[%clk 0:02:58]}  Bb7 {[%clk 0:03:02]} 5. O-O {[%clk 0:02:58]}  c5 {[%clk 0:03:02]} 6. a4 {[%clk 0:02:55]}  b4 {[%clk 0:03:02]} 7. c3 {[%clk 0:02:49]}  a5 {[%clk 0:03:00]} 8. Be3 {[%clk 0:02:44]}  cxd4 {[%clk 0:02:56]} 9. Qxd4 {[%clk 0:02:26]}  Nc6 {[%clk 0:02:54]} 10. Qb6 {[%clk 0:02:24]}  Qxb6 {[%clk 0:02:44]} 11. Bxb6 {[%clk 0:02:24]}  Nd5 {[%clk 0:02:45]} 12. Bd4 {[%clk 0:02:19]}  Rc8 {[%clk 0:02:18]} 13. e4 {[%clk 0:02:14]}  Nf6 {[%clk 0:02:19]} 14. e5 {[%clk 0:01:59]}  Nd5 {[%clk 0:01:55]} 15. c4 {[%clk 0:01:58]}  Nde7 {[%clk 0:01:56]} 16. Nbd2 {[%clk 0:01:46]}  Nf5 {[%clk 0:01:54]} 17. Bb6 {[%clk 0:01:43]}  d6 {[%clk 0:01:31]} 18. exd6 {[%clk 0:01:00]}  Bxd6 {[%clk 0:01:26]} 19. Rfd1 {[%clk 0:00:58]}  Bc7 {[%clk 0:01:22]} 20. Bxc7 {[%clk 0:00:54]}  Rxc7 {[%clk 0:01:23]} 21. Nb3 {[%clk 0:00:52]}  Ke7 {[%clk 0:01:22]} 22. c5 {[%clk 0:00:47]}  h5 {[%clk 0:01:01]} 23. Rd2 {[%clk 0:00:45]}  Ba6 {[%clk 0:00:36]} 24. Bf1 {[%clk 0:00:44]}  Bxf1 {[%clk 0:00:26]} 25. Kxf1 {[%clk 0:00:45]}  Ra8 {[%clk 0:00:19]} 26. Rad1 {[%clk 0:00:45]}  f6 {[%clk 0:00:18]} 27. Rd6 {[%clk 0:00:43]}  e5 {[%clk 0:00:14]} 28. h3 {[%clk 0:00:42]}  Raa7 {[%clk 0:00:09]} 29. g4 {[%clk 0:00:41]}  hxg4 {[%clk 0:00:10]} 30. hxg4 {[%clk 0:00:40]}  Nfd4 {[%clk 0:00:06]} 31. Nfxd4 {[%clk 0:00:37]}  Nxd4 {[%clk 0:00:07]} 32. Nxd4 {[%clk 0:00:37]}  exd4 {[%clk 0:00:08]} 33. Re1+ {[%clk 0:00:37]}  Kf7 {[%clk 0:00:08]} 34. c6 {[%clk 0:00:37]}  Ra6 {[%clk 0:00:07]} 35. Rxd4 {[%clk 0:00:35]}  Raxc6 {[%clk 0:00:07]} 36. Re2 {[%clk 0:00:28]}  Rc4 {[%clk 0:00:06]} 37. Rd5 {[%clk 0:00:27]}  R7c5 {[%clk 0:00:06]} 38. Rxc5 {[%clk 0:00:27]}  Rxc5 {[%clk 0:00:06]} 39. f3 {[%clk 0:00:24]}  b3 {[%clk 0:00:04]} 40. Re3 {[%clk 0:00:24]}  Rc1+ {[%clk 0:00:04]} 41. Kf2 {[%clk 0:00:24]}  Rc2+ {[%clk 0:00:05]} 42. Re2 {[%clk 0:00:24]}  g5 {[%clk 0:00:04]} 43. Ke3 {[%clk 0:00:24]}  Rc4 {[%clk 0:00:04]} 44. Kd3 {[%clk 0:00:22]}  Rxa4 {[%clk 0:00:05]} 45. Kc3 {[%clk 0:00:17]}  Rf4 {[%clk 0:00:05]} 46. Re3 {[%clk 0:00:18]}  a4 {[%clk 0:00:05]} 47. Rd3 {[%clk 0:00:13]}  f5 {[%clk 0:00:06]} 48. gxf5 {[%clk 0:00:12]}  Kf6 {[%clk 0:00:06]} 49. Rd6+ {[%clk 0:00:09]}  Kxf5 {[%clk 0:00:07]} 50. Rd5+ {[%clk 0:00:10]}  Kg6 {[%clk 0:00:07]} 51. Rd6+ {[%clk 0:00:10]}  Kh5 {[%clk 0:00:07]} 52. Rd3 {[%clk 0:00:10]}  Kh4 {[%clk 0:00:08]} 53. Kd2 {[%clk 0:00:10]}  Kg3 {[%clk 0:00:08]} 54. Ke2 {[%clk 0:00:11]}  Rf5 {[%clk 0:00:07]} 55. Rd4 {[%clk 0:00:09]}  Re5+ {[%clk 0:00:07]} 56. Kf1 {[%clk 0:00:08]}  Kxf3 {[%clk 0:00:06]} 57. Rxa4 {[%clk 0:00:08]}  Rc5 {[%clk 0:00:06]} 58. Ke1 {[%clk 0:00:06]}  Rc1+ {[%clk 0:00:06]} 59. Kd2 {[%clk 0:00:06]}  Rc2+ {[%clk 0:00:07]} 60. Kd3 {[%clk 0:00:07]}  Rxb2 {[%clk 0:00:08]} 61. Ra5 {[%clk 0:00:05]}  g4 {[%clk 0:00:08]} 62. Rf5+ {[%clk 0:00:05]}  Kg3 {[%clk 0:00:08]} 63. Kc3 {[%clk 0:00:05]}  Rb1 {[%clk 0:00:08]} 64. Rf8 {[%clk 0:00:05]}  Kg2 {[%clk 0:00:09]} 65. Rg8 {[%clk 0:00:05]}  g3 {[%clk 0:00:09]} 66. Rg7 {[%clk 0:00:05]}  Kf2 {[%clk 0:00:10]} 67. Rf7+ {[%clk 0:00:05]}  Kg1 {[%clk 0:00:10]} 68. Kd2 {[%clk 0:00:05]}  g2 {[%clk 0:00:10]} 69. Ke2 {[%clk 0:00:04]}  Rc1 {[%clk 0:00:07]} 70. Rb7 {[%clk 0:00:04]}  Rc2+ {[%clk 0:00:07]} 71. Kf3 {[%clk 0:00:04]}  Rc3+ {[%clk 0:00:07]} 72. Ke2 {[%clk 0:00:04]}  Rc2+ {[%clk 0:00:07]} 73. Kf3 {[%clk 0:00:04]}  b2 {[%clk 0:00:07]} 74. Rb6 {[%clk 0:00:03]}  Kf1 {[%clk 0:00:07]} 75. Ra6 {[%clk 0:00:02]}  b1=Q {[%clk 0:00:07]} 0-1


[Site "https://www.chess.com"]

[Event "Titled Tuesday Blitz June 6 Early 2023"]
[White "Rustemov, Alexander"]
[Black "Turzo, Attila"]
[WhiteFideId "4119002"]
[BlackFideId "704954"]
[WhiteElo "2871"]
[BlackElo "2483"]
[Result "1-0"]
[Round "3"]
[TimeControl "180+2"]
[Date "2023.06.06"]
[WhiteClock "0:00:49"]
[BlackClock "0:00:22"]
[Board "63"]

1. d4 {[%clk 0:03:00]}  Nf6 {[%clk 0:02:59]} 2. c4 {[%clk 0:03:01]}  g6 {[%clk 0:03:00]} 3. Nf3 {[%clk 0:03:01]}  Bg7 {[%clk 0:02:59]} 4. g3 {[%clk 0:03:01]}  O-O {[%clk 0:02:59]} 5. Bg2 {[%clk 0:03:01]}  d6 {[%clk 0:03:00]} 6. Nc3 {[%clk 0:03:01]}  Nbd7 {[%clk 0:03:00]} 7. O-O {[%clk 0:03:01]}  e5 {[%clk 0:03:00]} 8. e4 {[%clk 0:03:02]}  c6 {[%clk 0:03:01]} 9. h3 {[%clk 0:03:02]}  Qb6 {[%clk 0:03:00]} 10. Re1 {[%clk 0:03:00]}  Re8 {[%clk 0:02:56]} 11. d5 {[%clk 0:02:58]}  Nc5 {[%clk 0:02:54]} 12. Qe2 {[%clk 0:02:56]}  a5 {[%clk 0:02:54]} 13. Be3 {[%clk 0:02:55]}  cxd5 {[%clk 0:02:47]} 14. cxd5 {[%clk 0:02:53]}  Bd7 {[%clk 0:02:44]} 15. Rab1 {[%clk 0:02:51]}  Rec8 {[%clk 0:02:39]} 16. Nd2 {[%clk 0:02:49]}  Qa6 {[%clk 0:02:33]} 17. Qxa6 {[%clk 0:02:47]}  Rxa6 {[%clk 0:02:33]} 18. Bf1 {[%clk 0:02:47]}  b5 {[%clk 0:02:15]} 19. a4 {[%clk 0:02:35]}  bxa4 {[%clk 0:02:02]} 20. Bxc5 {[%clk 0:02:32]}  Rxc5 {[%clk 0:01:55]} 21. Bxa6 {[%clk 0:02:31]}  Bh6 {[%clk 0:01:55]} 22. Nc4 {[%clk 0:02:26]}  a3 {[%clk 0:01:52]} 23. bxa3 {[%clk 0:02:15]}  Kg7 {[%clk 0:01:47]} 24. Kg2 {[%clk 0:02:11]}  Ne8 {[%clk 0:01:27]} 25. a4 {[%clk 0:02:01]}  f5 {[%clk 0:01:26]} 26. f3 {[%clk 0:01:58]}  Nc7 {[%clk 0:01:21]} 27. Rb7 {[%clk 0:01:53]}  Kf6 {[%clk 0:01:16]} 28. Rxc7 {[%clk 0:01:43]}  Rxc7 {[%clk 0:01:15]} 29. Rb1 {[%clk 0:01:43]}  Bd2 {[%clk 0:01:08]} 30. Nxd2 {[%clk 0:01:42]}  Rxc3 {[%clk 0:01:08]} 31. Bb5 {[%clk 0:01:21]}  Bc8 {[%clk 0:00:55]} 32. Rb2 {[%clk 0:01:18]}  g5 {[%clk 0:00:52]} 33. exf5 {[%clk 0:01:13]}  Bxf5 {[%clk 0:00:50]} 34. Ne4+ {[%clk 0:01:13]}  Bxe4 {[%clk 0:00:51]} 35. fxe4 {[%clk 0:01:14]}  Re3 {[%clk 0:00:50]} 36. Re2 {[%clk 0:01:10]}  Rc3 {[%clk 0:00:48]} 37. g4 {[%clk 0:01:09]}  Ke7 {[%clk 0:00:46]} 38. Bc6 {[%clk 0:01:04]}  Rc4 {[%clk 0:00:43]} 39. Kf3 {[%clk 0:01:03]}  h6 {[%clk 0:00:40]} 40. Rb2 {[%clk 0:01:01]}  Rc3+ {[%clk 0:00:39]} 41. Kf2 {[%clk 0:00:59]}  Rc4 {[%clk 0:00:39]} 42. Rb7+ {[%clk 0:00:54]}  Kf6 {[%clk 0:00:35]} 43. Rd7 {[%clk 0:00:54]}  Rxe4 {[%clk 0:00:33]} 44. Rxd6+ {[%clk 0:00:54]}  Ke7 {[%clk 0:00:33]} 45. Rxh6 {[%clk 0:00:54]}  Rd4 {[%clk 0:00:33]} 46. Re6+ {[%clk 0:00:53]}  Kd8 {[%clk 0:00:31]} 47. Rxe5 {[%clk 0:00:53]}  Rd2+ {[%clk 0:00:31]} 48. Ke3 {[%clk 0:00:52]}  Rh2 {[%clk 0:00:31]} 49. Rxg5 {[%clk 0:00:52]}  Rxh3+ {[%clk 0:00:31]} 50. Kd4 {[%clk 0:00:52]}  Rh6 {[%clk 0:00:30]} 51. Kc5 {[%clk 0:00:51]}  Kc7 {[%clk 0:00:28]} 52. d6+ {[%clk 0:00:50]}  Kb8 {[%clk 0:00:22]} 53. Rg8+ {[%clk 0:00:50]}  Ka7 {[%clk 0:00:22]} 54. Ra8# {[%clk 0:00:49]} 1-0


[Site "https://www.chess.com"]

[Event "Titled Tuesday Blitz June 6 Early 2023"]
[White "Lehtosaari, Mauri"]
[Black "Kukhmazov, Arsen"]
[WhiteFideId "501999"]
[BlackFideId "24108260"]
[WhiteElo "2470"]
[BlackElo "2396"]
[Result "1/2-1/2"]
[Round "3"]
[TimeControl "180+2"]
[Date "2023.06.06"]
[WhiteClock "0:00:09"]
[BlackClock "0:00:14"]
[Board "67"]

1. d4 {[%clk 0:02:48]}  d5 {[%clk 0:02:58]} 2. Nf3 {[%clk 0:02:48]}  Nf6 {[%clk 0:02:58]} 3. Bg5 {[%clk 0:02:46]}  c5 {[%clk 0:02:52]} 4. e3 {[%clk 0:02:42]}  Nc6 {[%clk 0:02:42]} 5. c3 {[%clk 0:02:39]}  Qb6 {[%clk 0:02:36]} 6. Qb3 {[%clk 0:02:30]}  c4 {[%clk 0:02:34]} 7. Qxb6 {[%clk 0:02:28]}  axb6 {[%clk 0:02:35]} 8. Nfd2 {[%clk 0:01:57]}  b5 {[%clk 0:02:32]} 9. Be2 {[%clk 0:01:43]}  b4 {[%clk 0:02:27]} 10. Bf3 {[%clk 0:01:37]}  e6 {[%clk 0:02:14]} 11. Bxf6 {[%clk 0:01:22]}  gxf6 {[%clk 0:02:15]} 12. e4 {[%clk 0:01:23]}  bxc3 {[%clk 0:02:15]} 13. bxc3 {[%clk 0:01:17]}  Ne7 {[%clk 0:02:15]} 14. O-O {[%clk 0:01:11]}  Bh6 {[%clk 0:02:15]} 15. Rd1 {[%clk 0:00:56]}  Bd7 {[%clk 0:02:12]} 16. exd5 {[%clk 0:00:51]}  exd5 {[%clk 0:02:13]} 17. Nf1 {[%clk 0:00:50]}  Be6 {[%clk 0:02:09]} 18. a4 {[%clk 0:00:46]}  Kd7 {[%clk 0:02:07]} 19. Ne3 {[%clk 0:00:44]}  Ra6 {[%clk 0:02:06]} 20. Nd2 {[%clk 0:00:37]}  Rha8 {[%clk 0:02:05]} 21. Rdb1 {[%clk 0:00:36]}  R8a7 {[%clk 0:01:59]} 22. h3 {[%clk 0:00:33]}  Kc7 {[%clk 0:01:55]} 23. Rb4 {[%clk 0:00:30]}  Ra5 {[%clk 0:01:41]} 24. Ndf1 {[%clk 0:00:27]}  b5 {[%clk 0:01:29]} 25. Ng3 {[%clk 0:00:26]}  Bxe3 {[%clk 0:01:27]} 26. fxe3 {[%clk 0:00:26]}  bxa4 {[%clk 0:01:22]} 27. e4 {[%clk 0:00:25]}  a3 {[%clk 0:01:21]} 28. exd5 {[%clk 0:00:24]}  Nxd5 {[%clk 0:01:08]} 29. Rxc4+ {[%clk 0:00:24]}  Kd8 {[%clk 0:01:09]} 30. Bxd5 {[%clk 0:00:19]}  Bxd5 {[%clk 0:01:09]} 31. Rb4 {[%clk 0:00:20]}  Rc7 {[%clk 0:01:10]} 32. Ne2 {[%clk 0:00:19]}  a2 {[%clk 0:01:10]} 33. Rb2 {[%clk 0:00:19]}  Bc4 {[%clk 0:01:08]} 34. Ng3 {[%clk 0:00:17]}  Ra3 {[%clk 0:01:03]} 35. Ne4 {[%clk 0:00:15]}  f5 {[%clk 0:01:03]} 36. Nd6 {[%clk 0:00:13]}  Rxc3 {[%clk 0:00:57]} 37. Nxc4 {[%clk 0:00:13]}  R3xc4 {[%clk 0:00:56]} 38. Raxa2 {[%clk 0:00:13]}  Rxd4 {[%clk 0:00:57]} 39. Rd2 {[%clk 0:00:14]}  Rcd7 {[%clk 0:00:56]} 40. Rxd4 {[%clk 0:00:13]}  Rxd4 {[%clk 0:00:57]} 41. Ra5 {[%clk 0:00:13]}  f4 {[%clk 0:00:50]} 42. Kf2 {[%clk 0:00:13]}  Ke7 {[%clk 0:00:50]} 43. Kf3 {[%clk 0:00:13]}  Kf6 {[%clk 0:00:49]} 44. Rh5 {[%clk 0:00:11]}  Kg6 {[%clk 0:00:49]} 45. Ra5 {[%clk 0:00:12]}  h6 {[%clk 0:00:48]} 46. Rb5 {[%clk 0:00:10]}  Ra4 {[%clk 0:00:48]} 47. Rc5 {[%clk 0:00:09]}  f6 {[%clk 0:00:45]} 48. Rb5 {[%clk 0:00:10]}  h5 {[%clk 0:00:38]} 49. Rc5 {[%clk 0:00:10]}  h4 {[%clk 0:00:38]} 50. Rb5 {[%clk 0:00:10]}  Rc4 {[%clk 0:00:29]} 51. Ra5 {[%clk 0:00:10]}  Rc2 {[%clk 0:00:29]} 52. Rb5 {[%clk 0:00:09]}  Ra2 {[%clk 0:00:26]} 53. Rc5 {[%clk 0:00:09]}  Ra3+ {[%clk 0:00:21]} 54. Kxf4 {[%clk 0:00:09]}  Rg3 {[%clk 0:00:22]} 55. Rc2 {[%clk 0:00:09]}  Kg7 {[%clk 0:00:21]} 56. Rb2 {[%clk 0:00:10]}  Kf7 {[%clk 0:00:21]} 57. Ra2 {[%clk 0:00:10]}  Kg6 {[%clk 0:00:22]} 58. Rb2 {[%clk 0:00:10]}  Ra3 {[%clk 0:00:22]} 59. Rc2 {[%clk 0:00:11]}  Ra4+ {[%clk 0:00:22]} 60. Kf3 {[%clk 0:00:11]}  Kg5 {[%clk 0:00:23]} 61. Rb2 {[%clk 0:00:10]}  Ra3+ {[%clk 0:00:23]} 62. Kf2 {[%clk 0:00:10]}  f5 {[%clk 0:00:22]} 63. Rc2 {[%clk 0:00:10]}  Rd3 {[%clk 0:00:22]} 64. Rb2 {[%clk 0:00:11]}  Rd4 {[%clk 0:00:21]} 65. Rc2 {[%clk 0:00:11]}  Kf4 {[%clk 0:00:21]} 66. Rb2 {[%clk 0:00:10]}  Ra4 {[%clk 0:00:22]} 67. Rc2 {[%clk 0:00:11]}  Ke4 {[%clk 0:00:21]} 68. Re2+ {[%clk 0:00:10]}  Kd3 {[%clk 0:00:19]} 69. Re3+ {[%clk 0:00:11]}  Kd2 {[%clk 0:00:19]} 70. Re2+ {[%clk 0:00:09]}  Kd3 {[%clk 0:00:19]} 71. Re3+ {[%clk 0:00:10]}  Kd4 {[%clk 0:00:16]} 72. Re2 {[%clk 0:00:09]}  Kd3 {[%clk 0:00:14]} 1/2-1/2


[Site "https://www.chess.com"]

[Event "Titled Tuesday Blitz June 6 Early 2023"]
[White "Hirneise, Jens"]
[Black "Sokolovsky, Yahli"]
[WhiteFideId "24614734"]
[BlackFideId "2820242"]
[WhiteElo "2345"]
[BlackElo "2389"]
[Result "0-1"]
[Round "3"]
[TimeControl "180+2"]
[Date "2023.06.06"]
[WhiteClock "0:00:05"]
[BlackClock "0:00:18"]
[Board "68"]

1. Nf3 {[%clk 0:03:00]}  d5 {[%clk 0:02:59]} 2. g3 {[%clk 0:03:01]}  Bg4 {[%clk 0:02:55]} 3. c4 {[%clk 0:03:01]}  Bxf3 {[%clk 0:02:54]} 4. exf3 {[%clk 0:03:01]}  d4 {[%clk 0:02:55]} 5. d3 {[%clk 0:02:17]}  e6 {[%clk 0:02:52]} 6. Bg2 {[%clk 0:02:18]}  h5 {[%clk 0:02:51]} 7. h4 {[%clk 0:02:18]}  Nf6 {[%clk 0:02:52]} 8. O-O {[%clk 0:02:17]}  Be7 {[%clk 0:02:52]} 9. Re1 {[%clk 0:02:18]}  O-O {[%clk 0:02:52]} 10. Nd2 {[%clk 0:02:18]}  Na6 {[%clk 0:02:43]} 11. f4 {[%clk 0:02:14]}  Nc5 {[%clk 0:02:42]} 12. Nf3 {[%clk 0:02:15]}  Ng4 {[%clk 0:02:40]} 13. b4 {[%clk 0:00:58]}  Nd7 {[%clk 0:02:40]} 14. a3 {[%clk 0:00:57]}  a5 {[%clk 0:02:41]} 15. b5 {[%clk 0:00:56]}  Nc5 {[%clk 0:02:36]} 16. Ne5 {[%clk 0:00:53]}  Nxe5 {[%clk 0:02:33]} 17. Rxe5 {[%clk 0:00:53]}  g6 {[%clk 0:02:33]} 18. Rxc5 {[%clk 0:00:51]}  Bxc5 {[%clk 0:02:32]} 19. Bxb7 {[%clk 0:00:52]}  Rb8 {[%clk 0:02:26]} 20. Bf3 {[%clk 0:00:50]}  Qd6 {[%clk 0:02:15]} 21. Ra2 {[%clk 0:00:44]}  Rfe8 {[%clk 0:02:14]} 22. Re2 {[%clk 0:00:34]}  Bxa3 {[%clk 0:02:10]} 23. Bxa3 {[%clk 0:00:34]}  Qxa3 {[%clk 0:02:11]} 24. Bxh5 {[%clk 0:00:34]}  gxh5 {[%clk 0:02:03]} 25. Re5 {[%clk 0:00:33]}  Kf8 {[%clk 0:02:04]} 26. Qxh5 {[%clk 0:00:30]}  Ke7 {[%clk 0:01:42]} 27. f5 {[%clk 0:00:28]}  Qxd3 {[%clk 0:01:20]} 28. f6+ {[%clk 0:00:27]}  Kd8 {[%clk 0:00:58]} 29. Qxf7 {[%clk 0:00:27]}  Rb6 {[%clk 0:00:44]} 30. c5 {[%clk 0:00:23]}  Rxb5 {[%clk 0:00:43]} 31. Rxe6 {[%clk 0:00:23]}  Rb1+ {[%clk 0:00:42]} 32. Kh2 {[%clk 0:00:22]}  Rxe6 {[%clk 0:00:26]} 33. Qxe6 {[%clk 0:00:23]}  Qf3 {[%clk 0:00:26]} 34. Qg8+ {[%clk 0:00:17]}  Kd7 {[%clk 0:00:25]} 35. Qf7+ {[%clk 0:00:14]}  Kc8 {[%clk 0:00:19]} 36. Qe6+ {[%clk 0:00:09]}  Kb7 {[%clk 0:00:18]} 37. c6+ {[%clk 0:00:09]}  Ka7 {[%clk 0:00:17]} 38. Qe1 {[%clk 0:00:06]}  Rxe1 {[%clk 0:00:17]} 39. f7 {[%clk 0:00:05]}  Rh1# {[%clk 0:00:18]} 0-1


[Site "https://www.chess.com"]

[Event "Titled Tuesday Blitz June 6 Early 2023"]
[White "Weetik, Vjacheslav"]
[Black "Khromkin, Andrey"]
[WhiteFideId "4153472"]
[BlackFideId "4154126"]
[WhiteElo "2469"]
[BlackElo "2468"]
[Result "1-0"]
[Round "3"]
[TimeControl "180+2"]
[Date "2023.06.06"]
[WhiteClock "0:00:04"]
[BlackClock "0:00:02"]
[Board "69"]

1. d4 {[%clk 0:02:59]}  d5 {[%clk 0:02:59]} 2. c4 {[%clk 0:02:59]}  dxc4 {[%clk 0:02:59]} 3. Nf3 {[%clk 0:02:59]}  a6 {[%clk 0:02:59]} 4. e3 {[%clk 0:02:53]}  Bg4 {[%clk 0:02:58]} 5. Bxc4 {[%clk 0:02:52]}  e6 {[%clk 0:02:59]} 6. h3 {[%clk 0:02:46]}  Bh5 {[%clk 0:02:58]} 7. Nc3 {[%clk 0:02:35]}  Nc6 {[%clk 0:02:57]} 8. a3 {[%clk 0:02:26]}  Nf6 {[%clk 0:02:55]} 9. g4 {[%clk 0:02:23]}  Bg6 {[%clk 0:02:54]} 10. Nh4 {[%clk 0:02:24]}  Be4 {[%clk 0:01:58]} 11. Nxe4 {[%clk 0:02:01]}  Nxe4 {[%clk 0:01:58]} 12. Nf3 {[%clk 0:02:01]}  Qf6 {[%clk 0:01:51]} 13. Bd3 {[%clk 0:01:57]}  Nd6 {[%clk 0:01:30]} 14. g5 {[%clk 0:01:27]}  Qe7 {[%clk 0:01:29]} 15. e4 {[%clk 0:01:25]}  O-O-O {[%clk 0:01:24]} 16. Qa4 {[%clk 0:01:19]}  Nb5 {[%clk 0:01:08]} 17. Be3 {[%clk 0:01:12]}  Nbxd4 {[%clk 0:00:41]} 18. Nxd4 {[%clk 0:01:01]}  Nxd4 {[%clk 0:00:39]} 19. Bxa6 {[%clk 0:00:37]}  Qc5 {[%clk 0:00:06]} 20. Rc1 {[%clk 0:00:24]}  Qa7 {[%clk 0:00:06]} 21. Bb5 {[%clk 0:00:15]}  Qxa4 {[%clk 0:00:05]} 22. Bxa4 {[%clk 0:00:16]}  e5 {[%clk 0:00:04]} 23. O-O {[%clk 0:00:08]}  Be7 {[%clk 0:00:05]} 24. Kg2 {[%clk 0:00:08]}  h6 {[%clk 0:00:02]} 25. gxh6 {[%clk 0:00:04]}  gxh6 {[%clk 0:00:02]} 26. Kh1 {[%clk 0:00:04]}  Rhg8 {[%clk 0:00:02]} 27. Bd1 {[%clk 0:00:04]} 1-0


[Site "https://www.chess.com"]